Cogmind - Beta 16 @@@ ROGUE MODE // 2025.10.29 @ 22:00:50 Player: Jack Result: Self-destructed Performance ------------- Evolutions (1) 500 Regions Visited (5) 1000 Robots Destroyed (4) 20 Value Destroyed (33) 33 Prototype IDs (0) 0 Alien Tech Used (0) 0 Bonus (0) 0 TOTAL SCORE: 1553 Bonus ------- None Cogmind --------- Core Integrity 225/400 Matter 289/300 Energy 100/100 System Corruption 12% Temperature Cool (0) Movement Flying (40) Location -9/Exiles Parts ------- > --- POWER (1) -------- (None) > --- PROPULSION (3) --- Flight Unit > --- UTILITY (3) ------ (None) > --- WEAPON (2) ------- Light Assault Rifle Light Assault Rifle > --- INVENTORY (5) ---- Heavy Hammer Peak State ------------ > --- POWER ------------ (None) > --- PROPULSION ------- Flight Unit > --- UTILITY ---------- (None) > --- WEAPON ----------- Light Assault Rifle Heavy Hammer > --- INVENTORY -------- (None) [Rating: 4] Favorites ----------- Power None Propulsion Flight Unit Flight Unit Flight Unit Utility None Weapon Light Assault Rifle Ballistic Gun Light Assault Rifle Impact Weapon Heavy Hammer Build | -11 -10 -10 -9 -9 -9 ------- Run | Yrd Mat Min Mat Min Exi Slots Evolved 2 | . . . 2 . . Power . | . . . . . . Propulsion 1 | . . . 1 . . Utility 1 | . . . 1 . . Weapon . | . . . . . . Parts Attached 5 | 1 . . 4 . . Power . | . . . . . . Engine . | . . . . . . Core . | . . . . . . Reactor . | . . . . . . Propulsion 1 | . . . 1 . . Treads . | . . . . . . Leg . | . . . . . . Wheel . | . . . . . . Hover . | . . . . . . Flight 1 | . . . 1 . . Utility . | . . . . . . Device . | . . . . . . Storage . | . . . . . . Processor . | . . . . . . Hackware . | . . . . . . Protection . | . . . . . . Artifact . | . . . . . . Weapon 4 | 1 . . 3 . . Energy Gun . | . . . . . . Energy Cannon . | . . . . . . Ballistic Gun 3 | 1 . . 2 . . Ballistic Cannon . | . . . . . . Launcher . | . . . . . . Special Weapon . | . . . . . . Impact Weapon 1 | . . . 1 . . Slashing Weapon . | . . . . . . Piercing Weapon . | . . . . . . Special Melee Weapon . | . . . . . . Unidentified Prototypes . | . . . . . . Corrupted Parts 1 | . . . 1 . . System Corruption 12 | . . . 12 . . Parts Lost 1 | . . 1 . . . Power . | . . . . . . Propulsion . | . . . . . . Utility . | . . . . . . Weapon 1 | . . 1 . . . Highest Loss Streak 1 | . . 1 . . . To Critical Strikes . | . . . . . . Average Backups . | . . . . 1 1 Power . | . . . . . . Propulsion . | . . . . . . Utility . | . . . . . . Weapon . | . . . . 1 1 Tool/Special . | . . . . . . Unused Backups . | . . . . . . Power . | . . . . . . Propulsion . | . . . . . . Utility . | . . . . . . Weapon . | . . . . . . Tool/Special . | . . . . . . Average Slot Usage (%) 16 | . 14 7 19 33 33 Flight 3 | . . . 6 11 11 Ballistic Gun 11 | . 14 7 8 22 22 Impact Weapon 1 | . . . 4 . . Peak Build Rating 4 | 1 1 1 4 3 3 Average Rating 1 | . . . 2 3 3 On Entrance 1 | . 1 1 . 3 3 Avg Prop Armor Cover (%) . | . . . . . . Naked Turns 104 | . 1 63 40 . . Heaviest Build 4 | 2 2 2 4 2 2 Greatest Support 4 | 3 3 3 4 4 4 Greatest Overweight (x) . | . . . . . . Average Overweight (x) . | . . . . . . Largest Inventory Capacity 5 | 5 5 5 5 5 5 Average Capacity 5 | 5 5 5 5 5 5 Most Carried 1 | . . . 1 1 1 Average Carried . | . . . . 1 1 Final Capacity 5 | 5 5 5 5 5 5 Final Carried 1 | . . . 1 1 1 Class Distribution -------------------- 100% | Mutant Dominant Class ---------------- Mutant | -10/Materials Mutant | -10/Mines Mutant | -9/Materials Mutant | -9/Mines Mutant | -9/Exiles Resources | -11 -10 -10 -9 -9 -9 ----------- Run | Yrd Mat Min Mat Min Exi Matter Collected 280 | 142 81 . 57 . . Remotely . | . . . . . . Salvage Created 128 | . 21 . 107 . . Parts 4 | . 2 . 2 . . Haulers Intercepted . | . . . . . . Recyclers Shooed . | . . . . . . Parts Field Recycled . | . . . . . . Retrieved Matter . | . . . . . . Parts Self-Destructed . | . . . . . . Prevented . | . . . . . . Parts Restored . | . . . . . . Kills | -11 -10 -10 -9 -9 -9 ------- Run | Yrd Mat Min Mat Min Exi Combat Hostiles Destroyed 2 | . . . 2 . . Melee 2 | . . . 2 . . Classes Destroyed 3 | . 1 . 2 . . Tunneler 1 | . 1 . . . . Recycler 1 | . . . 1 . . Swarmer 2 | . . . 2 . . Best Kill Streak 2 | . 1 . 2 . . Combat Bots Only 1 | . . . 1 . . Max Kills in Single Turn 1 | . 1 . 1 . . Gunslinging . | . . . . . . Exploded . | . . . . . . Melee 1 | . . . 1 . . Uniques/NPCs Destroyed . | . . . . . . Combat | -11 -10 -10 -9 -9 -9 -------- Run | Yrd Mat Min Mat Min Exi Hostile Shots Fired 84 | . . 33 51 . . Missed 41 | . . 16 25 . . Hits 43 | . . 17 26 . . Projectile 43 | . . 17 26 . . Critical Strikes 1 | . . . 1 . . Damage Taken 467 | . . 245 222 . . Core 336 | . . 161 175 . . Absorbed by Shields . | . . . . . . Core Remaining (%) 67 | 100 . 35 . . . Volleys Fired 14 | . 7 . 7 . . Largest 1 | . 1 . 1 . . Hottest 20 | . 20 . 20 . . Shots Fired 15 | . 7 . 7 1 . Gun 15 | . 7 . 7 1 . Cannon . | . . . . . . Launcher . | . . . . . . Special . | . . . . . . Kinetic 15 | . 7 . 7 1 . Thermal . | . . . . . . Explosive . | . . . . . . Electromagnetic . | . . . . . . Robot Hit Streak 3 | . 3 . 2 . . Robot Miss Streak 1 | . 1 . 1 . . Penetration Max . | . . . . . . Secondary Targets . | . . . . . . Shots Hit Robots 12 | . 5 . 7 . . Core Hits 4 | . 2 1 1 . . Critical Kills . | . . . . . . Critical Parts Destroyed . | . . . . . . Critical Strikes . | . . . . . . Melee Attacks 4 | . . . 4 . . Impact 4 | . . . 4 . . Slashing . | . . . . . . Piercing . | . . . . . . Sneak Attacks 1 | . . . 1 . . Combat Hostiles . | . . . . . . Follow-up Attacks . | . . . . . . Damage Inflicted 318 | . 62 23 233 . . Guns 97 | . 62 . 35 . . Cannons . | . . . . . . Explosions . | . . . . . . Melee 198 | . . . 198 . . Ramming 23 | . . 23 . . . Kinetic 97 | . 62 . 35 . . Thermal . | . . . . . . Explosive . | . . . . . . Electromagnetic . | . . . . . . Impact 198 | . . . 198 . . Slashing . | . . . . . . Piercing . | . . . . . . Highest Corruption 12 | . . . 12 12 12 Average Corruption 12 | . . . 12 12 12 Corruption Purged . | . . . . . . Corruption Blocked . | . . . . . . Effects 5 | . . . 4 1 . Heat Flow Errors 1 | . . . 1 . . Parts Rejected 1 | . . . 1 . . Misfires 1 | . . . . 1 . Misdirections 2 | . . . 2 . . Overload Shots . | . . . . . . Overflow Damage 92 | . . . 92 . . Projectiles . | . . . . . . Explosions . | . . . . . . Melee 92 | . . . 92 . . Knockbacks . | . . . . . . Impact . | . . . . . . Kinetic . | . . . . . . Secondary . | . . . . . . Self-Inflicted Damage 10 | . . 10 . . . Shots . | . . . . . . Rammed 8 | . . 8 . . . Targets Rammed 8 | . . 8 . . . Kicked . | . . . . . . Crushed . | . . . . . . Highest Temperature 158 | . . . 158 . . Average Temperature 74 | . . . 74 . . Received Heat Transfer 177 | . . 126 51 . . Siege Activations . | . . . . . . Martial Activations . | . . . . . . Shielding Activations . | . . . . . . Robots Disrupted . | . . . . . . Combat Hostiles . | . . . . . . Robots Corrupted . | . . . . . . Combat Hostiles . | . . . . . . Parts Fried 2 | . . . 2 . . Impact Corruptions 3 | . . . 3 . . Robots Melted . | . . . . . . Combat Hostiles . | . . . . . . Parts Melted . | . . . . . . Heat Transferred . | . . . . . . Parts Sabotaged . | . . . . . . Parts Stolen . | . . . . . . Parts Stripped . | . . . . . . Power Chain Reactions . | . . . . . . Alert | -11 -10 -10 -9 -9 -9 ------- Run | Yrd Mat Min Mat Min Exi Maximum Alert Level . | . . . . . . Low Security (%) 100 | 100 100 100 100 100 . Level 1 . | . . . . . . Level 2 . | . . . . . . Level 3 . | . . . . . . Level 4 . | . . . . . . Level 5 . | . . . . . . High Security . | . . . . . . Max Security . | . . . . . . Peak Influence 65 | . 5 65 31 1 . Initial 21 | . . . 21 1 . Average 14 | . 2 19 17 1 . Influence Increases 181 | . 11 125 45 . . Destroy 0b10 Robot/C 60 | . . 20 40 . . Destroy 0b10 Robot/NC 10 | . 5 . 5 . . Successful Hack 5 | . 5 . . . . Destroy Structure 1 | . 1 . . . . Lose Combat Pursuer 105 | . . 105 . . . Influence Decreases 181 | . 11 70 94 5 1 Entered New Map 40 | . . . 34 5 1 Time Decay 111 | . 11 40 60 . . Lost Part 10 | . . 10 . . . Lost Ally 20 | . . 20 . . . Squads Dispatched 3 | . . . 3 . . Investigation 3 | . . . 3 . . Extermination . | . . . . . . Reinforcement . | . . . . . . Assault . | . . . . . . Garrison . | . . . . . . Intercept . | . . . . . . Searches Triggered . | . . . . . . Construction Impeded . | . . . . . . Haulers Reinforced . | . . . . . . Active Scanning Responses . | . . . . . . Cargo Convoy Interrupts . | . . . . . . Stealth | -11 -10 -10 -9 -9 -9 --------- Run | Yrd Mat Min Mat Min Exi Distress Signals 3 | . . . 3 . . Communications Jammed . | . . . . . . Distress Signals . | . . . . . . Times Spotted 24 | . 2 8 14 . . Peak Tracking Total 11 | . 2 5 11 . . Tactical Retreats 2 | . . 2 . . . Traps | -11 -10 -10 -9 -9 -9 ------- Run | Yrd Mat Min Mat Min Exi Traps Triggered 1 | . 1 . . . . Indirectly . | . . . . . . Trap Hack Attempts . | . . . . . . Triggered . | . . . . . . Disarmed . | . . . . . . Reprogrammed . | . . . . . . Reused . | . . . . . . Traps Extracted . | . . . . . . Installed . | . . . . . . Triggered . | . . . . . . Machines | -11 -10 -10 -9 -9 -9 ---------- Run | Yrd Mat Min Mat Min Exi Machines Disabled . | . . . . . . Max in Single Turn . | . . . . . . Machines Repaired . | . . . . . . Machines Dismantled . | . . . . . . Machines Sabotaged . | . . . . . . Overloaded Fab Kills . | . . . . . . Hacking | -11 -10 -10 -9 -9 -9 --------- Run | Yrd Mat Min Mat Min Exi Machines Accessed 5 | . 2 . 3 . . Terminals 5 | . 2 . 3 . . Fabricators . | . . . . . . Repair Stations . | . . . . . . Recycling Units . | . . . . . . Scanalyzers . | . . . . . . Garrison Access . | . . . . . . Total Hacks 11 | . 5 . 6 . . Successful 2 | . 1 . 1 . . Failed 9 | . 4 . 5 . . Catastrophic 3 | . . . 3 . . Database Lockouts . | . . . . . . Manual 11 | . 5 . 6 . . Terminals 11 | . 5 . 6 . . Fabricators . | . . . . . . Repair Stations . | . . . . . . Recycling Units . | . . . . . . Scanalyzers . | . . . . . . Garrison Access . | . . . . . . Terminal Hacks . | . . . . . . Fabricator Hacks . | . . . . . . Repair Station Hacks . | . . . . . . Recycling Unit Hacks . | . . . . . . Scanalyzer . | . . . . . . Garrison Access Hacks . | . . . . . . Unauthorized Hacks 2 | . 1 . 1 . . Terminals 2 | . 1 . 1 . . Botnet 1 | . 1 . . . . Sabotage 1 | . . . 1 . . Fabricators . | . . . . . . Repair Stations . | . . . . . . Recycling Units . | . . . . . . Scanalyzers . | . . . . . . Garrison Access . | . . . . . . Data Cores Recovered . | . . . . . . Used . | . . . . . . Hacking Detections 3 | . 1 . 2 . . Full Trace Events 3 | . 1 . 2 . . Feedback Events . | . . . . . . Feedback Blocked . | . . . . . . Robot Schematics Acquired . | . . . . . . Robots Built . | . . . . . . Authchips . | . . . . . . Time . | . . . . . . Total Robot Build Rating . | . . . . . . Part Schematics Acquired . | . . . . . . Parts Built . | . . . . . . Authchips . | . . . . . . Time . | . . . . . . Total Part Build Rating . | . . . . . . Part Studies Acquired . | . . . . . . Parts Repaired . | . . . . . . Time . | . . . . . . Parts Recycled . | . . . . . . Recycled Matter . | . . . . . . Retrieved Matter . | . . . . . . Retrieved Components . | . . . . . . Parts Scanalyzed . | . . . . . . Part Schematics Acquired . | . . . . . . Parts Damaged . | . . . . . . Bothacking | -11 -10 -10 -9 -9 -9 ------------ Run | Yrd Mat Min Mat Min Exi Used RIF Installer . | . . . . . . Robots Hacked . | . . . . . . Non-combat . | . . . . . . Combat . | . . . . . . Robot Hacks Applied . | . . . . . . Relay Couplers Released . | . . . . . . Fabnet Peak Effective % . | . . . . . . Robots Rewired . | . . . . . . Allies Hacked . | . . . . . . Hacks Repelled . | . . . . . . Allies | -11 -10 -10 -9 -9 -9 -------- Run | Yrd Mat Min Mat Min Exi Total Allies 1 | . . 1 . . . Largest Group 1 | . . 1 . . . Highest-Rated Group 31 | . . 31 . . . Highest-Rated Ally 31 | . . 31 . . . Total Orders . | . . . . . . Ally Attacks 7 | . . 7 . . . Total Damage 62 | . . 62 . . . Kills 1 | . . 1 . . . Allies Corrupted . | . . . . . . Allies Melted . | . . . . . . Intel | -11 -10 -10 -9 -9 -9 ------- Run | Yrd Mat Min Mat Min Exi Active Infowar (turns) . | . . . . . . Robot Analysis Total . | . . . . . . Derelict Logs Recovered . | . . . . . . Drone Launches . | . . . . . . Drone Recoveries . | . . . . . . Exploration | -11 -10 -10 -9 -9 -9 ------------- Run | Yrd Mat Min Mat Min Exi Turns Passed 382 | 13 68 138 124 17 22 Spaces Moved 652 | 22 104 259 173 41 53 Core 460 | 22 104 259 75 . . Treads . | . . . . . . Legs . | . . . . . . Wheels . | . . . . . . Hover . | . . . . . . Flight 192 | . . . 98 41 53 Fastest Speed 40 | 50 50 50 40 40 40 Average Speed 47 | 50 50 50 44 40 40 Slowest Speed 50 | 50 50 50 50 40 40 Overloaded Moves . | . . . . . . Propulsion Burnouts . | . . . . . . Robots Hopped 1 | . . . 1 . . Potential Cave-ins . | . . . . . . Cave-ins Triggered . | . . . . . . Exploration Rate (%) 27 | 3 25 71 25 18 24 Regions Visited 5 Branch Regions 3 Pre-discovered Areas . | . . . . . . Known Exits Taken . | . . . . . . Unknown Exits Taken 5 | 1 1 1 1 1 . Scrap Searched 1 | . . 1 . . . Spaces Dug . | . . . . . . Terrain Destroyed . | . . . . . . Melee . | . . . . . . Projectile . | . . . . . . AOE . | . . . . . . Terrain Rammed . | . . . . . . Walls Destroyed . | . . . . . . Machines Disabled . | . . . . . . Actions | -11 -10 -10 -9 -9 -9 --------- Run | Yrd Mat Min Mat Min Exi Total 695 | 22 111 266 203 40 53 Wait 15 | . . . 15 . . Move 645 | 21 103 258 170 40 53 Hop 1 | . . . 1 . . Pick Up . | . . . . . . Fast Attach 6 | 1 1 . 4 . . Attach . | . . . . . . Detach . | . . . . . . Swap 2 | . . . 2 . . Drop . | . . . . . . Fire 14 | . 7 . 7 . . Melee 4 | . . . 4 . . Ram 8 | . . 8 . . . Kick . | . . . . . . Crush . | . . . . . . Escape Stasis . | . . . . . . Rewire . | . . . . . . Trap . | . . . . . . Miscellaneous . | . . . . . . Route ------- -11/Scrapyard -10/Materials -10/Mines -9/Materials -9/Mines -9/Exiles (discovered 1 exit: [*Min]) History --------- Turn | Location | Event 4 | -11/Scrapyard | Discovered new exit (range 15) 14 | -11/Scrapyard | Entered Materials 77 | -10/Materials | Discovered new exit (range 10) 82 | -10/Materials | Entered Mines 134 | -10/Mines | Received a Mining Laser from a helpful Derelict 153 | -10/Mines | Core integrity fell below 50% 211 | -10/Mines | Discovered new exit (range 13) 220 | -10/Mines | Entered Materials 220 | -9/Materials | Evolved 2 slots: Propulsion x1, Utility x1 311 | -9/Materials | Build established: Mutant 315 | -9/Materials | System corruption reached 10% 338 | -9/Materials | Discovered new exit (range 12) 344 | -9/Materials | Entered Mines 359 | -9/Mines | Deemed a non-threat by the Exiles lab entrance 359 | -9/Mines | Discovered new exit (range 5) 361 | -9/Mines | Entered Exiles 361 | -9/Exiles | Found Exiles lab destroyed 368 | -9/Exiles | Discovered new exit (range 15) 383 | -9/Exiles | Self-destructed Last Messages --------------- Connecting with Terminal... ALERT: Suspicious activity at Terminal M003. Dispatching Investigation squad. K-01 Serf collects debris. System corrupted: Lgt. Assault Rifle rejected. Acquired Lgt. Assault Rifle. Critical hit (Burn: +37). EXIT=FOUND W-16 Scout destroyed. K-01 Serf collects debris. K-01 Serf cleans the Machine. LOCATION=UNKNOWN GOAL=ESCAPE Something is scanning the area. System corrupted: FCS attempts to trigger Lgt. Assault Rifle. System corrupted: Lgt. Assault Rifle misfires. "No threat detected, you may enter." EXIT=FOUND LOCATION=UNKNOWN GOAL=ESCAPE EXIT=FOUND Map ----- +----------------------------------------------------+ | ?????????????????????????????????????????????????? | | ?????????????????????????????????????????????????? | | ?????????????????????????????????????????????????? | | ?????????????????????????????????????????????????? | | ?????????????????????????????????????????????????? | | ?????????????????????????????????????????????????? | | ?????????????????????????????????????????????????? | | ?????????????????????????????????????????????????? | | ?????????????????????????????????????????????????? | | ?????????????????????????????????????????????????? | | ?????????????????????????????????????????????????? | | ?????????????????????????????????????????????????? | | ?????????????????????????????????????????????????? | | ????????????????#???#?######?????????????????????? | | ?????????????? ###""""" """##??????????????????? | | ?????????????? " " " """##?????????????????? | | ????????????? " " #?????????????????? | | ????????????? """#?????????????????? | | ???????????? h " "#???????????#####?? | | ???????????? " "##?????????## #?? | | ???????????? ""###???????#" #?? | | ???????????a a """#??????## ##? | | ????????????? "#?###### ## | | ??????????????""" ### # | | ??????????????#" ## | | ???????????????""" @ # | | ??????????????#"" ## | | ??????????????"" #### | | ????????????" "#?#"""" | | ???????????" g ""##?##### | | ???????????? #####??????? | | ???????????? ###??????????? | | ???????????? g " a ##????????????? | | ?????????????" " ""#?????????????? | | ?????????????"" " "" "##?????????????? | | ??????????????###""" """# ""##??????????????? | | ????????????????###""""# # ###???????????????? | | ??????????????????##???## ##?????????????????? | | ????????????????????????### ##??????????????????? | | ??????????????????????????###????????????????????? | | ?????????????????????????????????????????????????? | | ?????????????????????????????????????????????????? | | ?????????????????????????????????????????????????? | | ?????????????????????????????????????????????????? | | ?????????????????????????????????????????????????? | | ?????????????????????????????????????????????????? | | ?????????????????????????????????????????????????? | | ?????????????????????????????????????????????????? | | ?????????????????????????????????????????????????? | | ?????????????????????????????????????????????????? | +----------------------------------------------------+ Best States ------------- Heat Dissipation 28 Energy Generation 5 Energy Capacity 100 Matter Stores 300 Matter Capacity 300 Sight Range 16 Terrain Scan Density 10 Evasion (%) 62 Item Schematics ----------------- None Robot Schematics ------------------ None Fabricated ------------ Nothing Repaired ---------- Nothing Studied --------- None Alien Tech Used ----------------- None Achievements -------------- None Challenges ------------ None Game ------ Seed GravjetHeatLoader Manual? 0 Play Time 00:04:33 Cumulative 353.0 hours Start 2025.10.29 @ 21:56:24 End 2025.10.29 @ 22:00:50 Sessions 1 Manual Loads 0 Difficulty Rogue Special Mode None Game No. 331 Rogue 142 Adventurer 177 Explorer 12 Win Type - Total 74 Types 22/2/18/3/12/0/5/6/0/6 Lore% 59 Gallery% 57 Achievement% 51 Wizard Run 0 Options --------- Layout 0 ASCII 0 Keyboard 0 Movement Numpad Keybinds 0 Fullscreen 2 Font 12/Smallcaps Map View 83x54 Zoom Use 0% Tactical HUD 0 Map Filters NONE Filters NONE Steam 1 RUN: 9df050f6-de00-40bf-bd93-700fca149166